[Event "December 19 Early 2023"]
[Site "https://www.chess.com"]
[Date "2023.12.19"]
[Round "1"]
[White "Melikhov, Evgeny V."]
[Black "Javakhadze, Zurab"]
[Result "0-1"]
[Board "94"]
[TimeControl "180+1"]
[WhiteFideId "4122046"]
[BlackFideId "13603647"]
[WhiteElo "2165"]
[BlackElo "2374"]
[WhiteTeam "GRE"]
[BlackTeam "GEO"]
[WhiteClock "0:00:00"]
[BlackClock "0:00:02"]

1. d4 {[%clk 0:03:00]}  Nf6 {[%clk 0:02:59]} 2. c4 {[%clk 0:03:00]}  e6 {[%clk 0:03:00]} 3. Nc3 {[%clk 0:03:00]}  Bb4 {[%clk 0:03:00]} 4. Qc2 {[%clk 0:02:59]}  d5 {[%clk 0:02:58]} 5. cxd5 {[%clk 0:02:59]}  exd5 {[%clk 0:02:58]} 6. Bg5 {[%clk 0:02:59]}  h6 {[%clk 0:02:54]} 7. Bxf6 {[%clk 0:02:57]}  Qxf6 {[%clk 0:02:54]} 8. a3 {[%clk 0:02:57]}  Bxc3+ {[%clk 0:02:49]} 9. Qxc3 {[%clk 0:02:57]}  c6 {[%clk 0:02:40]} 10. e3 {[%clk 0:02:55]}  O-O {[%clk 0:02:39]} 11. Nf3 {[%clk 0:02:55]}  Nd7 {[%clk 0:02:27]} 12. Be2 {[%clk 0:02:54]}  Re8 {[%clk 0:02:27]} 13. O-O {[%clk 0:02:52]}  Nf8 {[%clk 0:02:27]} 14. Rfc1 {[%clk 0:02:50]}  Ng6 {[%clk 0:02:24]} 15. b4 {[%clk 0:02:45]}  Nf4 {[%clk 0:02:19]} 16. Bd1 {[%clk 0:02:27]}  Ng6 {[%clk 0:01:44]} 17. Be2 {[%clk 0:02:17]}  Bg4 {[%clk 0:01:41]} 18. Ra2 {[%clk 0:02:14]}  Rac8 {[%clk 0:01:40]} 19. Qc5 {[%clk 0:01:30]}  a6 {[%clk 0:01:34]} 20. Qb6 {[%clk 0:01:24]}  Re7 {[%clk 0:00:50]} 21. Rac2 {[%clk 0:01:14]}  Bf5 {[%clk 0:00:41]} 22. Rc3 {[%clk 0:01:10]}  Nf4 {[%clk 0:00:32]} 23. Bf1 {[%clk 0:01:03]}  Ng6 {[%clk 0:00:26]} 24. a4 {[%clk 0:00:48]}  Ra8 {[%clk 0:00:18]} 25. b5 {[%clk 0:00:42]}  cxb5 {[%clk 0:00:17]} 26. Qxf6 {[%clk 0:00:42]}  gxf6 {[%clk 0:00:18]} 27. axb5 {[%clk 0:00:41]}  a5 {[%clk 0:00:19]} 28. b6 {[%clk 0:00:37]}  Re6 {[%clk 0:00:15]} 29. Rc8+ {[%clk 0:00:33]}  Rxc8 {[%clk 0:00:15]} 30. Rxc8+ {[%clk 0:00:33]}  Kg7 {[%clk 0:00:15]} 31. Ra8 {[%clk 0:00:32]}  Rxb6 {[%clk 0:00:15]} 32. Rxa5 {[%clk 0:00:32]}  Rb1 {[%clk 0:00:16]} 33. Nd2 {[%clk 0:00:28]}  Rd1 {[%clk 0:00:14]} 34. Ra2 {[%clk 0:00:27]}  Ne7 {[%clk 0:00:10]} 35. f3 {[%clk 0:00:26]}  Nc6 {[%clk 0:00:10]} 36. Kf2 {[%clk 0:00:23]}  Bc8 {[%clk 0:00:04]} 37. Be2 {[%clk 0:00:20]}  Rc1 {[%clk 0:00:03]} 38. Rb2 {[%clk 0:00:19]}  Kf8 {[%clk 0:00:03]} 39. Nb3 {[%clk 0:00:18]}  Rc3 {[%clk 0:00:02]} 40. Nc5 {[%clk 0:00:18]}  Nd8 {[%clk 0:00:01]} 41. e4 {[%clk 0:00:16]}  dxe4 {[%clk 0:00:01]} 42. fxe4 {[%clk 0:00:16]}  Ra3 {[%clk 0:00:01]} 43. d5 {[%clk 0:00:14]}  Ke7 {[%clk 0:00:02]} 44. h3 {[%clk 0:00:11]}  Kd6 {[%clk 0:00:02]} 45. Nd3 {[%clk 0:00:10]}  Ra4 {[%clk 0:00:03]} 46. Ke3 {[%clk 0:00:10]}  f5 {[%clk 0:00:03]} 47. Bf3 {[%clk 0:00:09]}  fxe4 {[%clk 0:00:03]} 48. Bxe4 {[%clk 0:00:09]}  f5 {[%clk 0:00:04]} 49. Bf3 {[%clk 0:00:10]}  Nf7 {[%clk 0:00:04]} 50. Rb6+ {[%clk 0:00:07]}  Ke7 {[%clk 0:00:03]} 51. Nf4 {[%clk 0:00:00]}  Ne5 {[%clk 0:00:02]} 0-1

[Event "December 19 Early 2023"]
[Site "https://www.chess.com"]
[Date "2023.12.19"]
[Round "1"]
[White "Chan, Yi Ren Daniel"]
[Black "Marchesich, Giovanni"]
[Result "1-0"]
[Board "95"]
[TimeControl "180+1"]
[WhiteFideId "5801583"]
[BlackFideId "2824790"]
[WhiteElo "2375"]
[BlackElo "2198"]
[WhiteTeam "SGP"]
[BlackTeam "ITA"]
[WhiteClock "0:00:26"]
[BlackClock "0:00:00"]

1. e4 {[%clk 0:03:00]}  e5 {[%clk 0:02:58]} 2. Nf3 {[%clk 0:02:58]}  Nc6 {[%clk 0:02:57]} 3. Bc4 {[%clk 0:02:58]}  Nf6 {[%clk 0:02:56]} 4. Ng5 {[%clk 0:02:57]}  d5 {[%clk 0:02:56]} 5. exd5 {[%clk 0:02:58]}  Na5 {[%clk 0:02:56]} 6. Bb5+ {[%clk 0:02:58]}  c6 {[%clk 0:02:57]} 7. dxc6 {[%clk 0:02:59]}  bxc6 {[%clk 0:02:57]} 8. Bd3 {[%clk 0:03:00]}  Ng4 {[%clk 0:02:57]} 9. Nf3 {[%clk 0:02:49]}  Bc5 {[%clk 0:02:32]} 10. O-O {[%clk 0:02:46]}  f5 {[%clk 0:02:32]} 11. b4 {[%clk 0:02:02]}  Bxb4 {[%clk 0:02:15]} 12. Nxe5 {[%clk 0:01:49]}  Nxe5 {[%clk 0:02:09]} 13. Re1 {[%clk 0:01:50]}  O-O {[%clk 0:02:01]} 14. Rxe5 {[%clk 0:01:28]}  Qd4 {[%clk 0:02:00]} 15. Rxa5 {[%clk 0:01:03]}  Bxa5 {[%clk 0:01:56]} 16. Nc3 {[%clk 0:01:02]}  Rb8 {[%clk 0:01:27]} 17. Ba3 {[%clk 0:00:50]}  Re8 {[%clk 0:01:26]} 18. Qh5 {[%clk 0:00:40]}  Qe5 {[%clk 0:00:59]} 19. Rf1 {[%clk 0:00:36]}  Be6 {[%clk 0:00:52]} 20. Ne2 {[%clk 0:00:32]}  g6 {[%clk 0:00:47]} 21. Qh4 {[%clk 0:00:32]}  Bd8 {[%clk 0:00:43]} 22. Qa4 {[%clk 0:00:30]}  Bc7 {[%clk 0:00:38]} 23. g3 {[%clk 0:00:27]}  Bd5 {[%clk 0:00:34]} 24. Nf4 {[%clk 0:00:28]}  Be4 {[%clk 0:00:29]} 25. Bc4+ {[%clk 0:00:25]}  Bd5 {[%clk 0:00:20]} 26. Qxc6 {[%clk 0:00:25]}  Bxc4 {[%clk 0:00:18]} 27. Qxc4+ {[%clk 0:00:26]}  Kh8 {[%clk 0:00:16]} 28. Bb4 {[%clk 0:00:26]}  Bb6 {[%clk 0:00:02]} 29. Bc3 {[%clk 0:00:26]}  Bd4 {[%clk 0:00:00]} 30. Bxd4 {[%clk 0:00:26]} 1-0

[Event "December 19 Early 2023"]
[Site "https://www.chess.com"]
[Date "2023.12.19"]
[Round "1"]
[White "Gabrielian, Artur"]
[Black "Figorito, Nick"]
[Result "1-0"]
[Board "97"]
[TimeControl "180+1"]
[WhiteFideId "4131002"]
[BlackFideId "30923689"]
[WhiteElo "2441"]
[BlackElo "2420"]
[WhiteTeam "RUS"]
[BlackTeam "USA"]
[WhiteClock "0:00:07"]
[BlackClock "0:00:00"]

1. e4 {[%clk 0:03:00]}  e6 {[%clk 0:03:00]} 2. d4 {[%clk 0:03:00]}  d5 {[%clk 0:03:01]} 3. Nc3 {[%clk 0:03:00]}  Bb4 {[%clk 0:03:01]} 4. e5 {[%clk 0:03:00]}  c5 {[%clk 0:03:01]} 5. a3 {[%clk 0:03:00]}  Bxc3+ {[%clk 0:03:02]} 6. bxc3 {[%clk 0:03:01]}  Ne7 {[%clk 0:03:02]} 7. Qg4 {[%clk 0:03:01]}  Kf8 {[%clk 0:03:02]} 8. Bd2 {[%clk 0:02:59]}  b6 {[%clk 0:02:55]} 9. h4 {[%clk 0:02:57]}  Ba6 {[%clk 0:02:55]} 10. Bd3 {[%clk 0:02:53]}  Bxd3 {[%clk 0:02:54]} 11. cxd3 {[%clk 0:02:53]}  Nd7 {[%clk 0:02:50]} 12. h5 {[%clk 0:02:53]}  h6 {[%clk 0:02:51]} 13. Rh3 {[%clk 0:02:52]}  Qc7 {[%clk 0:02:47]} 14. Ne2 {[%clk 0:02:50]}  Nf5 {[%clk 0:02:46]} 15. Qf4 {[%clk 0:02:47]}  Rc8 {[%clk 0:02:18]} 16. g4 {[%clk 0:02:45]}  Ne7 {[%clk 0:02:18]} 17. Rf3 {[%clk 0:02:44]}  f6 {[%clk 0:01:56]} 18. Qe3 {[%clk 0:02:33]}  Kf7 {[%clk 0:01:45]} 19. exf6 {[%clk 0:02:22]}  Nxf6 {[%clk 0:01:40]} 20. dxc5 {[%clk 0:02:07]}  bxc5 {[%clk 0:01:30]} 21. Nf4 {[%clk 0:02:03]}  Qd6 {[%clk 0:01:22]} 22. Nh3 {[%clk 0:01:55]}  Kg8 {[%clk 0:01:07]} 23. Qf4 {[%clk 0:01:54]}  Qxf4 {[%clk 0:01:03]} 24. Rxf4 {[%clk 0:01:54]}  Kh7 {[%clk 0:00:56]} 25. Ra4 {[%clk 0:01:51]}  Nc6 {[%clk 0:00:52]} 26. f3 {[%clk 0:01:47]}  Rb8 {[%clk 0:00:51]} 27. Nf4 {[%clk 0:01:33]}  Rb2 {[%clk 0:00:42]} 28. Kd1 {[%clk 0:01:20]}  e5 {[%clk 0:00:34]} 29. Ng6 {[%clk 0:01:19]}  Rhb8 {[%clk 0:00:32]} 30. Ra6 {[%clk 0:01:18]}  R8b6 {[%clk 0:00:29]} 31. Rxb6 {[%clk 0:01:18]}  Rxb6 {[%clk 0:00:30]} 32. Kc2 {[%clk 0:01:15]}  e4 {[%clk 0:00:30]} 33. dxe4 {[%clk 0:01:13]}  dxe4 {[%clk 0:00:31]} 34. fxe4 {[%clk 0:01:11]}  Nxg4 {[%clk 0:00:30]} 35. Rf1 {[%clk 0:01:07]}  Nge5 {[%clk 0:00:28]} 36. Nf8+ {[%clk 0:01:02]}  Kg8 {[%clk 0:00:28]} 37. Ne6 {[%clk 0:01:02]}  Rb8 {[%clk 0:00:26]} 38. Nxc5 {[%clk 0:01:02]}  Rc8 {[%clk 0:00:25]} 39. Nd3 {[%clk 0:00:48]}  Nc4 {[%clk 0:00:21]} 40. Bc1 {[%clk 0:00:48]}  Rd8 {[%clk 0:00:19]} 41. Nb4 {[%clk 0:00:47]}  N6e5 {[%clk 0:00:18]} 42. Nd5 {[%clk 0:00:47]}  Kh7 {[%clk 0:00:12]} 43. Rf5 {[%clk 0:00:47]}  Rb8 {[%clk 0:00:07]} 44. Ne3 {[%clk 0:00:38]}  Nxe3+ {[%clk 0:00:06]} 45. Bxe3 {[%clk 0:00:38]}  Nc4 {[%clk 0:00:07]} 46. Bc1 {[%clk 0:00:39]}  Re8 {[%clk 0:00:06]} 47. Kd3 {[%clk 0:00:38]}  Ne5+ {[%clk 0:00:05]} 48. Ke2 {[%clk 0:00:37]}  Ng4 {[%clk 0:00:04]} 49. Kd3 {[%clk 0:00:34]}  Nf6 {[%clk 0:00:04]} 50. e5 {[%clk 0:00:34]}  Nd5 {[%clk 0:00:04]} 51. c4 {[%clk 0:00:32]}  Ne7 {[%clk 0:00:03]} 52. Rf7 {[%clk 0:00:26]}  Nc6 {[%clk 0:00:03]} 53. Rc7 {[%clk 0:00:24]}  Nxe5+ {[%clk 0:00:04]} 54. Kc3 {[%clk 0:00:23]}  Nf3 {[%clk 0:00:02]} 55. Rxa7 {[%clk 0:00:22]}  Nh2 {[%clk 0:00:02]} 56. a4 {[%clk 0:00:20]}  Ng4 {[%clk 0:00:02]} 57. a5 {[%clk 0:00:20]}  Nf6 {[%clk 0:00:03]} 58. a6 {[%clk 0:00:20]}  Nxh5 {[%clk 0:00:03]} 59. Rb7 {[%clk 0:00:19]}  Ra8 {[%clk 0:00:03]} 60. a7 {[%clk 0:00:20]}  Nf6 {[%clk 0:00:04]} 61. Be3 {[%clk 0:00:19]}  Ne4+ {[%clk 0:00:04]} 62. Kb4 {[%clk 0:00:18]}  Nd6 {[%clk 0:00:03]} 63. Rb8 {[%clk 0:00:18]}  Rxa7 {[%clk 0:00:04]} 64. Bxa7 {[%clk 0:00:18]}  Nf5 {[%clk 0:00:05]} 65. c5 {[%clk 0:00:18]}  Nd4 {[%clk 0:00:04]} 66. Kc4 {[%clk 0:00:18]}  Nc6 {[%clk 0:00:05]} 67. Ra8 {[%clk 0:00:18]}  h5 {[%clk 0:00:05]} 68. Bb6 {[%clk 0:00:19]}  h4 {[%clk 0:00:05]} 69. Kd5 {[%clk 0:00:19]}  Ne7+ {[%clk 0:00:05]} 70. Ke6 {[%clk 0:00:19]}  Ng6 {[%clk 0:00:05]} 71. Ra3 {[%clk 0:00:19]}  Nf4+ {[%clk 0:00:03]} 72. Kf5 {[%clk 0:00:19]}  h3 {[%clk 0:00:04]} 73. Kxf4 {[%clk 0:00:19]}  h2 {[%clk 0:00:05]} 74. Rc3 {[%clk 0:00:16]}  h1=Q {[%clk 0:00:04]} 75. Rf3 {[%clk 0:00:03]}  Qh4+ {[%clk 0:00:04]} 76. Ke3 {[%clk 0:00:04]}  Qe7+ {[%clk 0:00:04]} 77. Kd4 {[%clk 0:00:04]}  Qd7+ {[%clk 0:00:05]} 78. Kc3 {[%clk 0:00:04]}  Qc6 {[%clk 0:00:05]} 79. Rd3 {[%clk 0:00:04]}  Qa4 {[%clk 0:00:02]} 80. Rd4 {[%clk 0:00:04]}  Qa3+ {[%clk 0:00:02]} 81. Kc4 {[%clk 0:00:04]}  Qa4+ {[%clk 0:00:03]} 82. Kd5 {[%clk 0:00:05]}  Qb3+ {[%clk 0:00:04]} 83. Kd6 {[%clk 0:00:05]}  Qg3+ {[%clk 0:00:04]} 84. Kc6 {[%clk 0:00:05]}  Qg6+ {[%clk 0:00:04]} 85. Rd6 {[%clk 0:00:05]}  Qe4+ {[%clk 0:00:05]} 86. Kc7 {[%clk 0:00:05]}  Qe7+ {[%clk 0:00:05]} 87. Rd7 {[%clk 0:00:05]}  Qe5+ {[%clk 0:00:05]} 88. Kb7 {[%clk 0:00:05]}  Qe4+ {[%clk 0:00:05]} 89. c6 {[%clk 0:00:06]}  Kh6 {[%clk 0:00:00]} 90. Bd4 {[%clk 0:00:07]} 1-0

[Event "December 19 Early 2023"]
[Site "https://www.chess.com"]
[Date "2023.12.19"]
[Round "1"]
[White "Dwilewicz, Katarzyna"]
[Black "Weetik, Vjacheslav"]
[Result "0-1"]
[Board "98"]
[TimeControl "180+1"]
[WhiteFideId "1148486"]
[BlackFideId "4153472"]
[WhiteElo "2098"]
[BlackElo "2469"]
[WhiteTeam "POL"]
[BlackTeam "RUS"]
[WhiteClock "0:00:23"]
[BlackClock "0:00:04"]

1. e4 {[%clk 0:03:00]}  c6 {[%clk 0:02:55]} 2. d4 {[%clk 0:02:57]}  d5 {[%clk 0:02:52]} 3. f3 {[%clk 0:02:56]}  dxe4 {[%clk 0:02:44]} 4. fxe4 {[%clk 0:02:56]}  e5 {[%clk 0:02:44]} 5. Nf3 {[%clk 0:02:56]}  Bg4 {[%clk 0:02:43]} 6. Bc4 {[%clk 0:02:55]}  Nd7 {[%clk 0:02:42]} 7. O-O {[%clk 0:02:53]}  Bh5 {[%clk 0:02:40]} 8. Qe1 {[%clk 0:02:43]}  Bxf3 {[%clk 0:02:25]} 9. Rxf3 {[%clk 0:02:42]}  Ngf6 {[%clk 0:02:26]} 10. Bg5 {[%clk 0:02:35]}  Qb6 {[%clk 0:02:14]} 11. Nc3 {[%clk 0:02:13]}  Qxd4+ {[%clk 0:02:00]} 12. Be3 {[%clk 0:02:08]}  Qxc4 {[%clk 0:02:00]} 13. b3 {[%clk 0:02:08]}  Qe6 {[%clk 0:01:56]} 14. Rd1 {[%clk 0:02:08]}  Bb4 {[%clk 0:01:51]} 15. Bg5 {[%clk 0:02:03]}  h6 {[%clk 0:01:41]} 16. Qh4 {[%clk 0:01:58]}  O-O-O {[%clk 0:01:36]} 17. Bc1 {[%clk 0:01:53]}  Nc5 {[%clk 0:01:27]} 18. Rdf1 {[%clk 0:01:51]}  Bxc3 {[%clk 0:01:09]} 19. Rxc3 {[%clk 0:01:50]}  Ncxe4 {[%clk 0:01:03]} 20. Rc4 {[%clk 0:01:45]}  Nd2 {[%clk 0:00:56]} 21. Bxd2 {[%clk 0:01:43]}  Rxd2 {[%clk 0:00:53]} 22. Ra4 {[%clk 0:01:44]}  a6 {[%clk 0:00:43]} 23. Qg3 {[%clk 0:01:40]}  Rhd8 {[%clk 0:00:23]} 24. h3 {[%clk 0:01:37]}  g5 {[%clk 0:00:18]} 25. Qf3 {[%clk 0:01:35]}  R8d6 {[%clk 0:00:13]} 26. Rc4 {[%clk 0:01:31]}  e4 {[%clk 0:00:13]} 27. Qe3 {[%clk 0:01:24]}  Rd1 {[%clk 0:00:09]} 28. Qe2 {[%clk 0:01:08]}  Rxf1+ {[%clk 0:00:08]} 29. Qxf1 {[%clk 0:01:09]}  Nd5 {[%clk 0:00:08]} 30. Qe2 {[%clk 0:00:59]}  f5 {[%clk 0:00:08]} 31. g3 {[%clk 0:00:58]}  Qe5 {[%clk 0:00:08]} 32. Kg2 {[%clk 0:00:57]}  Nf6 {[%clk 0:00:07]} 33. a4 {[%clk 0:00:52]}  f4 {[%clk 0:00:07]} 34. Kh2 {[%clk 0:00:45]}  e3 {[%clk 0:00:05]} 35. gxf4 {[%clk 0:00:38]}  gxf4 {[%clk 0:00:05]} 36. Qf3 {[%clk 0:00:38]}  Rd2+ {[%clk 0:00:05]} 37. Kh1 {[%clk 0:00:37]}  Qg5 {[%clk 0:00:04]} 38. Rxf4 {[%clk 0:00:33]}  Rd1+ {[%clk 0:00:03]} 39. Qxd1 {[%clk 0:00:27]}  Qxf4 {[%clk 0:00:04]} 40. Qe2 {[%clk 0:00:27]}  Ne4 {[%clk 0:00:03]} 41. Kg2 {[%clk 0:00:25]}  Qg3+ {[%clk 0:00:02]} 42. Kf1 {[%clk 0:00:24]}  Nd2+ {[%clk 0:00:03]} 43. Qxd2 {[%clk 0:00:23]}  exd2 {[%clk 0:00:04]} 0-1

[Event "December 19 Early 2023"]
[Site "https://www.chess.com"]
[Date "2023.12.19"]
[Round "1"]
[White "Martinez Ramirez, Lennis"]
[Black "Cansun, Can Alp"]
[Result "1-0"]
[Board "99"]
[TimeControl "180+1"]
[WhiteFideId "3509079"]
[BlackFideId "6390188"]
[WhiteElo "2405"]
[BlackElo "2031"]
[WhiteTeam "CUB"]
[BlackTeam "TUR"]
[WhiteClock "0:00:10"]
[BlackClock "0:00:00"]

1. d4 {[%clk 0:03:00]}  Nf6 {[%clk 0:02:53]} 2. Nf3 {[%clk 0:03:01]}  e6 {[%clk 0:02:52]} 3. Bg5 {[%clk 0:03:01]}  d5 {[%clk 0:02:52]} 4. Nbd2 {[%clk 0:03:01]}  c5 {[%clk 0:02:52]} 5. e4 {[%clk 0:03:01]}  dxe4 {[%clk 0:02:51]} 6. Nxe4 {[%clk 0:03:00]}  Nbd7 {[%clk 0:02:42]} 7. dxc5 {[%clk 0:02:32]}  Qa5+ {[%clk 0:02:33]} 8. Bd2 {[%clk 0:02:24]}  Qc7 {[%clk 0:02:27]} 9. Nxf6+ {[%clk 0:02:14]}  Nxf6 {[%clk 0:02:26]} 10. b4 {[%clk 0:02:15]}  a5 {[%clk 0:02:24]} 11. a3 {[%clk 0:02:06]}  Be7 {[%clk 0:02:22]} 12. Bd3 {[%clk 0:02:04]}  O-O {[%clk 0:02:22]} 13. O-O {[%clk 0:02:04]}  b6 {[%clk 0:02:11]} 14. cxb6 {[%clk 0:02:03]}  Qxb6 {[%clk 0:02:11]} 15. bxa5 {[%clk 0:02:03]}  Qc7 {[%clk 0:02:06]} 16. Bb4 {[%clk 0:02:03]}  Ba6 {[%clk 0:02:05]} 17. c4 {[%clk 0:01:38]}  Rfc8 {[%clk 0:02:03]} 18. Rc1 {[%clk 0:01:37]}  Qf4 {[%clk 0:01:51]} 19. g3 {[%clk 0:01:33]}  Qc7 {[%clk 0:01:42]} 20. Qe2 {[%clk 0:01:18]}  Rab8 {[%clk 0:01:34]} 21. c5 {[%clk 0:01:15]}  Bb7 {[%clk 0:01:31]} 22. a6 {[%clk 0:01:03]}  Ba8 {[%clk 0:01:26]} 23. Nd2 {[%clk 0:01:03]}  Qc6 {[%clk 0:01:20]} 24. f3 {[%clk 0:01:03]}  Nd5 {[%clk 0:01:19]} 25. Rc4 {[%clk 0:01:03]}  Qxa6 {[%clk 0:01:10]} 26. Rh4 {[%clk 0:01:01]}  Qa7 {[%clk 0:00:47]} 27. Bxh7+ {[%clk 0:00:53]}  Kf8 {[%clk 0:00:47]} 28. Be4 {[%clk 0:00:52]}  Bxc5+ {[%clk 0:00:47]} 29. Kh1 {[%clk 0:00:50]}  Bxb4 {[%clk 0:00:42]} 30. axb4 {[%clk 0:00:50]}  Nxb4 {[%clk 0:00:39]} 31. Bxa8 {[%clk 0:00:43]}  Qxa8 {[%clk 0:00:39]} 32. Qe5 {[%clk 0:00:38]}  Qd5 {[%clk 0:00:22]} 33. Qf4 {[%clk 0:00:29]}  Nd3 {[%clk 0:00:11]} 34. Rh8+ {[%clk 0:00:23]}  Ke7 {[%clk 0:00:11]} 35. Qh4+ {[%clk 0:00:15]}  Kd7 {[%clk 0:00:08]} 36. Rxc8 {[%clk 0:00:13]}  Rxc8 {[%clk 0:00:08]} 37. Qa4+ {[%clk 0:00:13]}  Qc6 {[%clk 0:00:08]} 38. Qd4+ {[%clk 0:00:12]}  Qd6 {[%clk 0:00:08]} 39. Qxg7 {[%clk 0:00:12]}  Ne5 {[%clk 0:00:07]} 40. Ne4 {[%clk 0:00:11]}  Qe7 {[%clk 0:00:00]} 41. Qxe5 {[%clk 0:00:10]} 1-0

[Event "December 19 Early 2023"]
[Site "https://www.chess.com"]
[Date "2023.12.19"]
[Round "1"]
[White "Recuero Guerra, Javier"]
[Black "Schmakel, Sam"]
[Result "0-1"]
[Board "100"]
[TimeControl "180+1"]
[WhiteFideId "2254085"]
[BlackFideId "2039311"]
[WhiteElo "2208"]
[BlackElo "2356"]
[WhiteTeam "ESP"]
[BlackTeam "USA"]
[WhiteClock "0:00:00"]
[BlackClock "0:00:19"]

1. Nf3 {[%clk 0:02:58]}  d5 {[%clk 0:02:59]} 2. g3 {[%clk 0:02:57]}  Nc6 {[%clk 0:02:55]} 3. Bg2 {[%clk 0:02:53]}  e5 {[%clk 0:02:55]} 4. d3 {[%clk 0:02:53]}  Nf6 {[%clk 0:02:53]} 5. c3 {[%clk 0:02:53]}  a5 {[%clk 0:02:45]} 6. a4 {[%clk 0:02:52]}  Be7 {[%clk 0:02:43]} 7. Na3 {[%clk 0:02:50]}  O-O {[%clk 0:02:43]} 8. O-O {[%clk 0:02:50]}  Re8 {[%clk 0:02:36]} 9. Nb5 {[%clk 0:02:49]}  h6 {[%clk 0:02:32]} 10. Qc2 {[%clk 0:02:29]}  Bf5 {[%clk 0:02:31]} 11. Nh4 {[%clk 0:02:27]}  Bh7 {[%clk 0:02:31]} 12. e4 {[%clk 0:02:24]}  dxe4 {[%clk 0:02:10]} 13. dxe4 {[%clk 0:02:25]}  Bc5 {[%clk 0:02:10]} 14. Be3 {[%clk 0:01:59]}  Bxe3 {[%clk 0:01:57]} 15. fxe3 {[%clk 0:02:00]}  Qe7 {[%clk 0:01:57]} 16. Nf5 {[%clk 0:01:34]}  Bxf5 {[%clk 0:01:56]} 17. exf5 {[%clk 0:01:35]}  e4 {[%clk 0:01:56]} 18. Rf4 {[%clk 0:01:25]}  Rad8 {[%clk 0:01:24]} 19. Nd4 {[%clk 0:01:18]}  Ne5 {[%clk 0:01:21]} 20. Qe2 {[%clk 0:00:57]}  Nd3 {[%clk 0:01:04]} 21. Rh4 {[%clk 0:00:52]}  c5 {[%clk 0:00:50]} 22. Nc2 {[%clk 0:00:36]}  Qd7 {[%clk 0:00:38]} 23. Na3 {[%clk 0:00:22]}  Qxa4 {[%clk 0:00:33]} 24. Rf1 {[%clk 0:00:19]}  Qb3 {[%clk 0:00:30]} 25. Rb1 {[%clk 0:00:16]}  b5 {[%clk 0:00:27]} 26. g4 {[%clk 0:00:06]}  b4 {[%clk 0:00:25]} 27. cxb4 {[%clk 0:00:05]}  axb4 {[%clk 0:00:23]} 28. Nc2 {[%clk 0:00:06]}  Qa2 {[%clk 0:00:19]} 29. Rf1 {[%clk 0:00:00]}  Qxb2 {[%clk 0:00:19]} 0-1

[Event "December 19 Early 2023"]
[Site "https://www.chess.com"]
[Date "2023.12.19"]
[Round "1"]
[White "Miszler, Levente"]
[Black "Srihari L R"]
[Result "0-1"]
[Board "106"]
[TimeControl "180+1"]
[WhiteFideId "763276"]
[BlackFideId "46617116"]
[WhiteElo "2186"]
[BlackElo "2338"]
[WhiteTeam "HUN"]
[BlackTeam "IND"]
[WhiteClock "0:01:45"]
[BlackClock "0:00:50"]

1. Nf3 {[%clk 0:02:59]}  d5 {[%clk 0:02:50]} 2. c4 {[%clk 0:02:58]}  d4 {[%clk 0:02:49]} 3. e3 {[%clk 0:02:59]}  Nc6 {[%clk 0:02:48]} 4. exd4 {[%clk 0:02:58]}  Nxd4 {[%clk 0:02:49]} 5. Nxd4 {[%clk 0:02:59]}  Qxd4 {[%clk 0:02:49]} 6. Nc3 {[%clk 0:03:00]}  Nh6 {[%clk 0:02:47]} 7. Nb5 {[%clk 0:02:44]}  Qd8 {[%clk 0:02:45]} 8. d4 {[%clk 0:02:39]}  c6 {[%clk 0:02:44]} 9. Nc3 {[%clk 0:02:29]}  Nf5 {[%clk 0:02:43]} 10. Be3 {[%clk 0:02:27]}  Nxe3 {[%clk 0:02:41]} 11. fxe3 {[%clk 0:02:28]}  e5 {[%clk 0:02:24]} 12. Be2 {[%clk 0:02:25]}  Qg5 {[%clk 0:02:19]} 13. Qd3 {[%clk 0:02:20]}  exd4 {[%clk 0:02:10]} 14. exd4 {[%clk 0:02:21]}  Qxg2 {[%clk 0:01:58]} 15. O-O-O {[%clk 0:02:18]}  Qg5+ {[%clk 0:01:58]} 16. Kb1 {[%clk 0:02:15]}  Bf5 {[%clk 0:01:57]} 17. Ne4 {[%clk 0:02:16]}  Qg6 {[%clk 0:01:56]} 18. Bf3 {[%clk 0:02:15]}  O-O-O {[%clk 0:01:56]} 19. Rhe1 {[%clk 0:02:14]}  Bb4 {[%clk 0:01:53]} 20. Re2 {[%clk 0:02:14]}  Rhe8 {[%clk 0:01:52]} 21. c5 {[%clk 0:02:14]}  Bxc5 {[%clk 0:01:36]} 22. Qc2 {[%clk 0:02:09]}  Bxd4 {[%clk 0:01:30]} 23. Nd6+ {[%clk 0:02:01]}  Rxd6 {[%clk 0:01:26]} 24. Rxe8+ {[%clk 0:02:01]}  Kd7 {[%clk 0:01:26]} 25. Be4 {[%clk 0:02:00]}  Kxe8 {[%clk 0:01:05]} 26. Bxf5 {[%clk 0:01:59]}  Qf6 {[%clk 0:01:03]} 27. Qe4+ {[%clk 0:01:54]}  Kf8 {[%clk 0:01:02]} 28. Re1 {[%clk 0:01:54]}  g6 {[%clk 0:01:00]} 29. Bg4 {[%clk 0:01:50]}  Kg7 {[%clk 0:00:58]} 30. Re2 {[%clk 0:01:49]}  h5 {[%clk 0:00:57]} 31. Bf3 {[%clk 0:01:47]}  Re6 {[%clk 0:00:56]} 32. Qd3 {[%clk 0:01:46]}  Rxe2 {[%clk 0:00:56]} 33. Qxe2 {[%clk 0:01:47]}  Qe5 {[%clk 0:00:52]} 34. Qxe5+ {[%clk 0:01:43]}  Bxe5 {[%clk 0:00:53]} 35. Kc2 {[%clk 0:01:44]}  Bxh2 {[%clk 0:00:50]} 36. Kd3 {[%clk 0:01:45]} 0-1

[Event "December 19 Early 2023"]
[Site "https://www.chess.com"]
[Date "2023.12.19"]
[Round "1"]
[White "Maurizzi, Marc`Andria"]
[Black "Wael Sabry, Mina"]
[Result "1-0"]
[Board "107"]
[TimeControl "180+1"]
[WhiteFideId "36083534"]
[BlackFideId "10670173"]
[WhiteElo "2417"]
[BlackElo "1861"]
[WhiteTeam "FRA"]
[BlackTeam "EGY"]
[WhiteClock "0:00:13"]
[BlackClock "0:00:00"]

1. e4 {[%clk 0:03:00]}  c5 {[%clk 0:02:59]} 2. Nf3 {[%clk 0:03:00]}  d6 {[%clk 0:02:59]} 3. d4 {[%clk 0:03:00]}  cxd4 {[%clk 0:03:00]} 4. Nxd4 {[%clk 0:03:01]}  Nf6 {[%clk 0:03:01]} 5. Nc3 {[%clk 0:03:01]}  a6 {[%clk 0:03:01]} 6. b4 {[%clk 0:03:00]}  e5 {[%clk 0:02:56]} 7. Nf3 {[%clk 0:03:00]}  Be6 {[%clk 0:02:54]} 8. a3 {[%clk 0:02:53]}  Qc7 {[%clk 0:02:53]} 9. Nd5 {[%clk 0:02:51]}  Bxd5 {[%clk 0:02:12]} 10. exd5 {[%clk 0:02:52]}  e4 {[%clk 0:01:54]} 11. Ng5 {[%clk 0:02:44]}  b5 {[%clk 0:01:52]} 12. Bb2 {[%clk 0:02:42]}  Be7 {[%clk 0:01:48]} 13. Rc1 {[%clk 0:02:40]}  Nbd7 {[%clk 0:01:48]} 14. c4 {[%clk 0:02:39]}  bxc4 {[%clk 0:01:47]} 15. Rxc4 {[%clk 0:02:39]}  Qb7 {[%clk 0:01:47]} 16. Nxe4 {[%clk 0:02:38]}  Rc8 {[%clk 0:01:34]} 17. Rxc8+ {[%clk 0:02:34]}  Qxc8 {[%clk 0:01:34]} 18. Bd3 {[%clk 0:02:33]}  Nxd5 {[%clk 0:01:23]} 19. O-O {[%clk 0:02:26]}  O-O {[%clk 0:01:10]} 20. Bxa6 {[%clk 0:02:19]}  Qxa6 {[%clk 0:01:10]} 21. Qxd5 {[%clk 0:02:15]}  Rc8 {[%clk 0:01:10]} 22. Re1 {[%clk 0:01:39]}  Rc2 {[%clk 0:00:47]} 23. Qd4 {[%clk 0:01:29]}  Ne5 {[%clk 0:00:40]} 24. f4 {[%clk 0:01:14]}  Rc4 {[%clk 0:00:34]} 25. Qd2 {[%clk 0:01:09]}  Ng6 {[%clk 0:00:31]} 26. g3 {[%clk 0:01:03]}  Qc6 {[%clk 0:00:31]} 27. Nc3 {[%clk 0:00:51]}  Bf6 {[%clk 0:00:30]} 28. Re8+ {[%clk 0:00:50]}  Nf8 {[%clk 0:00:30]} 29. Nd5 {[%clk 0:00:48]}  Qxe8 {[%clk 0:00:23]} 30. Bxf6 {[%clk 0:00:42]}  Kh8 {[%clk 0:00:12]} 31. Bb2 {[%clk 0:00:32]}  Qe4 {[%clk 0:00:10]} 32. Ne3 {[%clk 0:00:30]}  Rc8 {[%clk 0:00:05]} 33. f5 {[%clk 0:00:22]}  f6 {[%clk 0:00:03]} 34. b5 {[%clk 0:00:15]}  Nd7 {[%clk 0:00:03]} 35. Bd4 {[%clk 0:00:14]}  Ra8 {[%clk 0:00:00]} 36. Qb4 {[%clk 0:00:13]} 1-0